bitfinex/quotes_ETHUSD_20251017
["timestamp","ask_amount","ask_price","bid_price","bid_amount"]
[1760684672214,0.6614,3822.7,3821.3,2.61689485]
[1760684672416,0.41045615,3823.4,3821.3,2.61689485]
[1760684672417,0.41045615,3823.4,3821.4,2.826]
[1760684672589,0.41045615,3823.4,3821.5,1.728]
[1760684672794,0.6614,3823.8,3821.7,2.3616]
[1760684673021,0.04760199,3824.1,3823.0,2.61572517]
[1760684673222,0.04760199,3824.1,3822.2,2.828]
[1760684673435,0.04760199,3824.1,3822.3,0.2828]
[1760684673637,0.04760199,3824.1,3822.4,2.61615738]
[1760684673839,0.04760199,3824.1,3822.4,2.61613827]
[1760684673840,0.4393,3824.0,3822.4,2.61613827]
[1760684674015,0.2221,3823.9,3822.1,0.6336]
[1760684674209,0.4393,3823.8,3821.8,2.61656367]
[1760684674414,0.4393,3823.7,3821.2,2.826]
[1760684674637,0.2221,3823.9,3819.9,0.001]
[1760684674638,1.6273,3823.6,3821.3,0.28843466]
[1760684674946,1.6273,3823.6,3821.4,0.6336]
[1760684675643,0.41040163,3823.3,3821.3,0.2826]
[1760684675845,0.41040163,3823.3,3821.5,4.34476627]
[1760684676149,0.4393,3823.2,3820.5,2.824]
[1760684676314,0.1304,3822.5,3821.9,0.1304]
[1760684676517,0.1304,3822.5,3821.9,2.74689193]
[1760684676731,0.4393,3823.2,3821.6,2.61668327]
[1760684676941,0.2221,3822.8,3821.7,0.32502833]
[1760684677248,0.4393,3822.7,3821.0,1.728]
[1760684677436,0.4393,3822.7,3821.5,2.61676342]
[1760684677616,0.4393,3822.7,3820.4,1.728]
[1760684677818,0.4393,3822.6,3820.3,1.728]
[1760684678016,0.04561257,3822.7,3821.0,1.728]
[1760684678017,0.4393,3822.5,3821.0,1.728]
[1760684678327,0.4393,3822.5,3820.8,1.728]
[1760684678658,0.4393,3822.5,3819.6,2.61803712]
[1760684678659,0.4393,3822.4,3818.6,2.61875833]
[1760684678955,0.41051811,3822.1,3818.0,18.32793544]
[1760684679153,0.04562957,3821.8,3818.9,0.037]
[1760684679314,0.04562957,3821.8,3819.7,2.61800213]
[1760684679516,0.6614,3821.7,3819.8,2.61793776]
[1760684679815,0.6614,3821.7,3819.5,2.61913648]
[1760684679816,0.6614,3821.7,3819.9,0.26289378]
[1760684680015,0.6614,3821.7,3819.9,0.001]
[1760684680424,0.04563193,3821.3,3819.9,0.001]
[1760684680662,1.606,3821.2,3819.9,0.001]
[1760684680817,2.0453,3821.2,3819.9,0.001]
[1760684681233,2.3616,3821.1,3819.9,0.001]
[1760684681436,0.44525319,3821.0,3819.9,0.001]
[1760684681639,0.6336,3820.9,3819.9,0.001]
[1760684681842,0.04563987,3820.9,3819.9,0.001]
[1760684682045,0.4393,3820.8,3819.9,0.001]
[1760684682717,0.41069602,3820.6,3819.9,0.001]
[1760684683153,0.4393,3820.5,3819.9,0.001]
[1760684683338,0.48494007,3820.5,3819.9,0.001]
[1760684683854,2.819,3820.4,3819.9,0.001]
[1760684684615,2.819,3820.4,3819.9,1.729]
[1760684684821,2.819,3820.4,3819.9,0.001]
[1760684685041,0.4393,3820.3,3819.9,0.001]
[1760684685416,2.819,3820.4,3819.9,0.001]
[1760684686029,3.2583,3820.4,3819.9,0.001]
[1760684686764,0.1304,3820.2,3819.9,0.001]
[1760684688748,0.4393,3820.1,3819.9,0.001]
[1760684689285,0.04563881,3820.4,3819.9,0.001]
[1760684690088,0.4393,3820.3,3819.9,0.001]
[1760684690441,0.4393,3820.2,3819.9,0.001]
[1760684690663,0.04563881,3820.4,3819.9,0.001]
[1760684690962,0.4393,3820.1,3819.9,0.001]
[1760684691355,0.4533,3820.0,3819.9,0.001]
[1760684691557,2.81,3820.2,3819.9,0.001]
[1760684691745,0.4533,3820.0,3819.9,0.001]
[1760684691942,0.41069109,3820.9,3819.9,0.001]
[1760684692142,0.94917301,3820.9,3819.9,0.001]
[1760684692355,0.4212473,3820.8,3819.9,0.001]
[1760684692555,3.30893309,3821.0,3819.9,0.001]
[1760684692969,0.53849527,3820.9,3819.9,0.001]
[1760684693277,3.30893309,3821.0,3819.9,0.001]
[1760684693784,0.41061615,3821.6,3820.1,0.6336]
[1760684693989,0.41061615,3821.6,3820.3,0.6336]
[1760684694171,0.04562207,3822.1,3821.2,2.61692534]
[1760684694345,0.4533,3822.3,3821.0,2.64327135]
[1760684694698,3.02794,3822.2,3821.0,2.64328]
[1760684694848,0.53894505,3822.1,3821.1,0.02617047]
[1760684695044,0.53894505,3822.1,3820.8,2.61723477]
[1760684695295,0.53894505,3822.1,3820.0,1.728]
[1760684695462,0.85531851,3822.0,3820.6,2.61733348]
[1760684695680,0.2252,3821.9,3820.2,0.6336]
[1760684695862,0.6785,3821.9,3820.5,2.61740233]
[1760684696063,0.4533,3821.8,3820.6,2.61738564]
[1760684696263,0.4533,3821.8,3820.3,2.6175844]
[1760684696468,1.14134833,3821.7,3819.9,0.001]
[1760684696669,1.21193998,3821.6,3819.9,0.001]
[1760684696981,0.45624994,3821.3,3819.9,0.001]
[1760684697183,2.808,3821.2,3819.9,0.001]
[1760684697509,0.53894505,3821.1,3819.9,0.001]
[1760684697717,0.96459455,3821.1,3819.9,0.001]
[1760684698016,0.4533,3821.0,3819.9,0.001]
[1760684698185,0.53894505,3820.9,3819.9,0.001]
[1760684698373,0.94963084,3820.8,3819.9,0.001]
[1760684698572,1.21193998,3820.7,3819.9,0.001]
[1760684698883,0.67299493,3820.4,3819.5,0.001]
[1760684699217,0.2252,3819.6,3819.5,0.001]
[1760684699503,3.34494505,3820.3,3819.5,0.001]
[1760684699504,0.53894505,3820.2,3819.5,0.001]
[1760684699681,0.1304,3819.6,3819.5,0.001]
[1760684699879,0.45638879,3820.1,3819.5,0.001]
[1760684699880,0.41074599,3820.1,3819.6,2.61807519]
[1760684700077,0.41074599,3820.1,3819.5,0.001]
[1760684700078,0.1304,3820.1,3819.7,0.26190752]
[1760684700278,0.1304,3820.1,3819.5,2.74952518]
[1760684700501,0.1304,3820.1,3819.6,2.61807519]
[1760684700703,0.1304,3820.1,3819.5,0.1314]
[1760684700904,0.1304,3820.1,3819.6,2.61801486]
[1760684701103,2.806,3820.4,3819.5,0.001]
[1760684701273,0.1304,3819.8,3819.5,0.001]
[1760684701469,2.806,3820.4,3819.5,0.001]
[1760684701670,2.806,3820.4,3820.1,2.6176995]
[1760684701875,0.89819493,3821.9,3820.1,0.53660376]
[1760684702075,0.89819493,3821.9,3819.5,0.001]
[1760684702076,0.237,3820.8,3819.7,2.3616]
[1760684702309,3.042,3820.8,3819.7,2.3616]
[1760684702619,1.00382428,3820.7,3819.5,0.001]
[1760684702813,3.34492428,3820.6,3819.5,0.001]
[1760684703140,0.67299493,3820.4,3819.5,0.001]
[1760684703337,0.9417162,3820.3,3819.5,0.001]
[1760684703538,0.53992428,3820.2,3819.5,0.001]
[1760684703703,0.67299493,3820.0,3819.1,0.001]
[1760684703908,0.67299493,3819.7,3819.1,0.001]
[1760684704116,3.34592428,3819.6,3819.1,0.001]
[1760684704348,0.9418162,3819.5,3819.1,0.001]
[1760684704538,0.53992428,3819.4,3819.1,0.001]
[1760684704741,0.53992428,3819.3,3819.1,0.001]
[1760684705043,0.53992428,3819.2,3819.1,0.001]
[1760684705246,1.00382428,3819.2,3819.1,0.001]
[1760684705409,0.4639,3819.2,3819.1,0.001]
[1760684705606,2.806,3819.6,3819.1,0.001]
[1760684706130,2.806,3819.6,3819.4,2.61815267]
[1760684706332,2.806,3819.6,3819.5,2.61814373]
[1760684706533,0.4639,3821.0,3819.6,3.25167519]
[1760684706761,3.2679,3820.7,3819.4,0.26191527]
[1760684707052,0.5411841,3820.6,3819.4,0.26191527]
[1760684707342,0.4639,3820.5,3819.1,0.001]
[1760684707759,1.0050841,3820.5,3819.1,0.001]
[1760684707914,0.0456398,3820.5,3819.3,0.6336]
[1760684708112,0.0456398,3820.5,3819.5,1.728]
[1760684708309,0.0456398,3820.5,3819.6,0.02618075]
[1760684708540,2.803,3820.5,3820.1,2.61769993]
[1760684708739,2.803,3820.5,3819.7,0.6336]
[1760684708943,2.803,3820.5,3819.8,2.61793811]
[1760684709130,2.803,3820.5,3819.9,2.61786957]
[1760684709441,2.803,3820.5,3819.6,3.25165759]
[1760684709649,2.803,3820.5,3819.7,2.94313482]
[1760684709945,2.803,3820.5,3820.1,2.61772572]
[1760684710112,2.803,3820.5,3819.7,0.32516576]
[1760684710320,2.803,3820.5,3819.9,2.61785388]
[1760684710514,2.803,3820.5,3820.0,0.02617801]
[1760684710731,2.803,3820.5,3819.7,0.02618006]
[1760684710929,2.803,3820.5,3819.7,2.08218667]
[1760684711125,2.803,3820.5,3820.1,2.61772492]
[1760684711448,0.4639,3821.8,3820.5,0.6336]
[1760684711635,2.798,3821.7,3821.0,2.61711245]
[1760684711968,0.1304,3821.5,3821.3,2.61689856]
[1760684712167,1.866,3822.4,3821.5,2.61673499]
[1760684712168,0.686,3822.4,3821.5,2.61673499]
[1760684712458,0.1304,3821.9,3821.3,0.52340145]
[1760684712665,0.237,3821.4,3820.5,2.61745434]
[1760684712870,2.9284,3821.3,3820.5,0.6336]
[1760684713065,2.798,3821.2,3820.7,0.1304]
[1760684713763,0.237,3821.8,3821.2,0.6336]
[1760684713764,2.9284,3821.8,3821.2,0.6336]
[1760684714060,0.1304,3822.2,3821.4,0.6336]
[1760684714259,2.9284,3822.2,3821.6,0.1304]
[1760684714459,2.9284,3822.2,3821.9,2.61645368]
[1760684714660,2.9284,3822.2,3821.6,1.8584]
[1760684714959,2.9284,3822.2,3822.1,2.61636273]
[1760684714960,2.798,3822.2,3822.1,2.61636273]
[1760684715130,2.798,3822.2,3822.0,0.1304]
[1760684715334,2.798,3822.2,3822.1,2.61636273]
[1760684715527,0.4104537,3823.3,3822.4,2.61615738]
[1760684715725,0.4104537,3823.3,3823.2,2.61560996]
[1760684716127,1.055,3823.7,3823.5,2.6153787]
[1760684716337,1.055,3823.7,3823.5,2.6153891]
[1760684716560,1.055,3823.7,3822.8,2.61581998]
[1760684716561,1.055,3823.7,3823.6,2.61533633]
[1760684716760,1.055,3823.7,3822.7,0.6336]
[1760684716960,1.055,3823.7,3823.6,3.24893633]
[1760684716961,0.002,3823.7,3823.6,3.24893633]
[1760684717177,0.002,3823.7,3823.6,5.30182996]
[1760684717679,0.002,3823.7,3823.6,5.30402996]
[1760684717860,0.002,3824.5,3824.0,2.61506276]
[1760684718030,0.002,3824.5,3824.4,3.24838924]
[1760684718264,1.35655908,3825.2,3825.1,2.3616]
[1760684718508,1.35655908,3825.2,3825.1,1.728]
[1760684718661,1.35655908,3825.2,3823.8,19.52777113]
[1760684718981,1.35655908,3825.2,3824.5,2.3616]
[1760684719183,0.237,3825.9,3824.5,2.3616]
[1760684719372,0.237,3825.9,3824.8,0.6336]
[1760684719765,0.237,3825.9,3824.3,2.7982]
[1760684719766,0.237,3825.9,3824.3,0.0022]
[1760684719962,0.237,3825.9,3824.4,1.728]
[1760684720163,0.237,3826.5,3824.5,2.07382]
[1760684720366,1.604,3826.3,3825.1,2.3616]
[1760684720692,1.604,3826.3,3825.0,0.6336]
[1760684720892,0.4659,3826.2,3825.0,0.6336]
[1760684721093,0.4659,3826.2,3824.5,0.34582]
[1760684721402,0.67089,3826.1,3823.6,0.3272]
[1760684721603,0.6336,3825.8,3822.1,0.0022]
[1760684721895,0.6336,3825.8,3822.2,0.02616294]
[1760684722100,2.61427184,3825.2,3822.2,2.61629428]
[1760684722261,2.77188345,3825.0,3821.7,14.257329]
[1760684722467,0.6336,3824.8,3821.8,1.47682004]
[1760684722798,3.27892282,3824.9,3821.5,0.0022]
[1760684722799,0.6336,3824.6,3821.5,0.0022]
[1760684722974,0.6336,3824.4,3820.0,2.61773374]
[1760684723173,0.6336,3824.2,3820.7,0.0022]
[1760684723373,1.728,3823.9,3820.7,0.0022]
[1760684723560,0.41043092,3823.5,3820.7,0.0022]
[1760684723896,0.41043092,3823.5,3820.3,0.02617595]
[1760684724093,1.1017,3823.4,3820.1,0.0022]
[1760684724295,0.6336,3823.2,3819.7,14.795663]
[1760684724498,0.15121309,3823.3,3819.2,0.0022]
[1760684724499,1.728,3823.0,3819.2,0.0022]
[1760684724700,0.6336,3822.9,3819.6,2.61805856]
[1760684724901,1.728,3823.0,3819.2,0.0022]
[1760684724902,0.45617834,3822.2,3819.2,0.0022]
[1760684725104,0.45617834,3822.2,3819.1,2.61941325]
[1760684725105,0.6336,3821.9,3819.1,2.61941325]
[1760684725269,3.4266,3822.1,3819.1,2.61941325]
[1760684725270,0.57882,3821.8,3819.5,0.0022]
[1760684725471,1.32,3821.7,3819.6,2.64420136]
[1760684725783,0.1304,3820.9,3820.3,0.1304]
[1760684725991,0.1304,3820.9,3820.2,1.728]
[1760684726299,0.1304,3821.1,3820.5,0.1304]
[1760684727091,0.41057116,3821.9,3820.7,0.6336]
[1760684727301,0.54097116,3821.9,3821.1,2.61704744]
[1760684727501,0.218,3822.8,3821.1,2.61704744]
[1760684727502,0.4681,3822.4,3821.3,1.728]
[1760684727689,0.4681,3822.4,3821.2,0.53646319]
[1760684728001,0.4681,3822.3,3820.8,2.61724711]
[1760684728308,0.4681,3822.2,3818.9,1.728]
[1760684728492,0.4681,3822.2,3820.5,1.728]
[1760684728811,0.4681,3822.2,3820.8,1.728]
[1760684729012,0.4681,3822.2,3820.9,0.02617184]
[1760684729178,2.799,3822.1,3821.0,2.61706873]
[1760684729378,0.4681,3822.0,3820.5,2.3616]
[1760684729572,0.4681,3822.0,3820.7,2.3616]
[1760684729777,0.4681,3822.0,3821.0,2.61705057]
[1760684729985,0.4681,3822.0,3820.3,0.6336]
[1760684730204,0.4681,3822.0,3820.9,2.61717126]
[1760684730398,0.4681,3822.0,3820.9,0.26171713]
[1760684730673,0.4681,3822.0,3819.7,1.728]
[1760684730882,0.4681,3821.9,3819.2,1.728]
[1760684731079,0.04562211,3821.6,3819.1,0.001]
[1760684731281,0.6336,3821.4,3819.1,0.001]
[1760684731520,0.4681,3821.3,3819.1,0.001]
[1760684731676,0.218,3819.5,3819.1,0.001]
[1760684731876,0.584,3819.5,3819.1,0.001]
[1760684732379,1.50854983,3819.5,3819.1,0.001]
[1760684732820,1.65940481,3819.5,3818.6,0.001]
[1760684733140,0.4681,3819.4,3818.6,0.001]
[1760684733415,3.20880725,3819.5,3818.6,0.001]
[1760684733613,0.218,3819.9,3818.6,0.001]
[1760684734090,0.218,3819.9,3819.0,2.61948089]
[1760684734293,2.798,3820.2,3819.2,0.6336]
[1760684734492,0.41068608,3820.7,3819.5,2.3616]
[1760684734695,0.218,3822.0,3819.5,2.3616]
[1760684734696,0.218,3820.8,3819.7,0.6336]
[1760684735015,0.6861,3820.8,3819.7,2.61795127]
[1760684735182,0.6861,3820.8,3819.5,0.02618143]
[1760684735500,0.218,3821.3,3820.1,1.728]
[1760684735703,0.218,3821.3,3820.1,4.34570917]
[1760684736025,0.41061468,3821.7,3819.7,0.6336]
[1760684736026,2.8,3821.5,3820.3,0.6336]
[1760684736228,2.8,3821.5,3819.8,1.728]
[1760684736534,0.4681,3821.4,3819.2,1.728]
[1760684736818,0.4681,3821.3,3819.4,3.25177485]
[1760684737032,0.4681,3821.2,3819.2,0.6336]
[1760684737234,0.6336,3821.0,3819.0,0.001]
[1760684737400,0.1304,3819.3,3819.0,0.001]
[1760684737732,0.1304,3819.3,3819.1,1.728]
[1760684738033,0.1304,3819.3,3819.0,0.27610096]
[1760684738235,0.1304,3819.3,3819.0,0.001]
[1760684738540,3.018,3819.9,3819.0,0.001]
[1760684738900,2.1961,3819.8,3819.0,0.001]
[1760684739218,0.4681,3819.8,3819.0,0.001]
[1760684740243,0.4681,3819.8,3818.7,0.001]
[1760684740396,0.218,3818.8,3818.7,0.001]
[1760684740910,0.6861,3818.8,3818.7,0.001]
[1760684741439,3.4871,3818.8,3818.7,0.001]
[1760684741650,3.4871,3818.8,3816.8,0.02619995]
[1760684741651,3.53175453,3818.8,3816.8,0.02619995]
[1760684741859,3.94265508,3818.8,3815.9,18.2027165]
[1760684742139,2.14406551,3818.7,3816.1,0.0582]
[1760684742308,2.61216551,3818.7,3816.2,0.02620407]
[1760684742497,0.88416551,3818.7,3817.3,2.61961118]
[1760684742697,0.62890055,3818.8,3817.0,0.0582]
[1760684742921,0.4681,3819.2,3817.5,0.6336]
[1760684743093,1.7101,3819.2,3817.5,2.3616]
[1760684743294,1.242,3819.2,3818.5,2.61876528]
[1760684743515,1.242,3819.2,3817.9,2.6192272]
[1760684743727,1.242,3819.2,3818.1,0.6336]
[1760684743931,0.41084444,3819.8,3818.2,0.6336]
[1760684744230,0.41084444,3819.8,3818.9,0.6336]
[1760684744529,0.41084444,3819.8,3818.8,1.728]
[1760684744530,1.44468863,3820.5,3819.7,1.728]
[1760684744731,1.44468863,3820.5,3819.5,2.61808973]
[1760684744934,1.44468863,3820.5,3818.7,0.6336]
[1760684745229,1.44468863,3820.5,3819.1,0.6336]
[1760684745230,1.034,3820.5,3819.1,0.6336]
[1760684745529,0.4681,3820.4,3819.3,2.3616]
[1760684745827,0.4681,3820.4,3818.8,0.6336]
[1760684746132,1.034,3820.5,3819.2,0.6336]
[1760684746320,0.4681,3821.0,3820.1,2.61767519]
[1760684746495,0.4681,3821.0,3819.9,2.3616]
[1760684746695,0.4681,3821.0,3819.8,0.6336]
[1760684746909,2.01,3821.5,3819.8,0.6336]
[1760684747119,0.24781,3821.4,3820.3,2.61757553]
[1760684747319,0.24781,3821.4,3819.8,0.86976]
[1760684747535,0.24781,3821.4,3819.7,0.6336]
[1760684747536,0.4681,3821.3,3819.7,0.6336]
[1760684747703,0.24781,3821.4,3819.5,0.6336]
[1760684747704,0.4681,3821.2,3819.5,0.6336]
[1760684748029,0.4681,3821.2,3819.1,0.6336]
[1760684748030,0.4681,3821.1,3819.1,0.6336]
[1760684748233,0.04563548,3820.8,3819.3,1.728]
[1760684748395,0.04563548,3820.8,3819.3,0.6336]
[1760684748598,0.04563548,3820.8,3819.5,1.728]
[1760684748826,0.04563548,3820.8,3819.5,2.3616]
[1760684749030,0.1304,3820.3,3819.7,0.1304]
[1760684749235,0.1304,3819.9,3819.2,0.1304]
[1760684750005,0.51373548,3820.8,3819.0,0.6336]
[1760684750202,0.1304,3820.2,3819.6,0.1304]
[1760684750531,0.4681,3820.2,3819.0,1.728]
[1760684750728,0.4681,3820.2,3818.9,2.61854721]
[1760684750729,0.1304,3819.6,3818.9,1.8584]
[1760684750918,0.1304,3819.6,3818.9,0.1304]
[1760684751602,0.6396408,3820.3,3819.2,2.61831876]
[1760684751795,0.1304,3819.9,3819.3,2.61827731]
[1760684752027,0.1304,3819.9,3819.2,0.39223188]
[1760684752430,0.1304,3819.9,3819.4,2.61820075]
[1760684752631,0.1304,3820.2,3819.7,2.61800422]
[1760684752834,0.1304,3820.2,3819.6,2.74846432]
[1760684753239,0.1304,3820.2,3819.6,0.1304]
[1760684753452,0.4426,3820.7,3819.1,0.001]
[1760684753630,0.1304,3819.9,3819.3,0.1304]
[1760684754147,0.4426,3820.2,3819.1,0.001]
[1760684754345,0.1304,3819.9,3819.3,2.61826623]
[1760684754546,0.1304,3819.9,3819.2,0.1304]
[1760684754750,0.1304,3819.9,3819.1,0.1739]
[1760684754751,0.1304,3820.2,3819.8,0.6336]
[1760684754901,0.2281,3821.0,3819.9,0.0582]
[1760684755099,0.2281,3821.0,3820.1,2.61772827]
[1760684755420,0.2281,3821.0,3819.9,0.0582]
[1760684755661,0.66661,3820.9,3819.9,2.61782889]
[1760684755822,0.2281,3821.0,3819.9,2.61782889]
[1760684756326,0.2281,3821.0,3819.7,0.6336]
[1760684756635,0.2281,3821.0,3819.3,0.0582]
[1760684756636,0.4426,3820.9,3819.3,0.0582]
[1760684756835,0.4426,3820.9,3819.3,1.7862]
[1760684757024,0.4426,3820.8,3819.1,0.1739]
[1760684757226,0.4426,3820.8,3819.1,2.61936109]
[1760684757528,0.4426,3820.8,3819.1,0.001]
[1760684757713,0.4426,3820.8,3819.5,2.61814174]
[1760684758039,0.4426,3820.8,3819.2,0.6336]
[1760684758204,0.4426,3820.8,3819.5,2.61811032]
[1760684758405,0.75649753,3820.8,3819.6,2.61807218]
[1760684758632,0.75649753,3820.8,3819.4,4.97981228]
[1760684758855,0.75649753,3820.8,3819.5,2.61812555]
[1760684759002,0.75649753,3820.8,3819.1,0.6346]
[1760684759315,0.75649753,3820.8,3819.6,2.61805239]
[1760684759522,0.75649753,3820.8,3819.4,4.34619334]
[1760684759716,0.75649753,3820.8,3819.5,2.61814373]
[1760684759911,0.75649753,3820.8,3819.5,2.61813841]
[1760684760264,0.63874529,3821.0,3819.5,0.6336]
[1760684760557,0.04562998,3821.1,3819.9,2.3616]
[1760684760706,0.1,3821.4,3820.3,19.93993036]
[1760684760914,0.1,3821.4,3820.5,2.61745844]
[1760684761410,0.1,3821.4,3820.5,0.6336]
[1760684761610,0.1,3821.4,3820.8,19.93993036]
[1760684761843,0.1,3821.4,3821.1,2.61702541]
[1760684762020,0.1,3821.4,3821.3,20.57353036]
[1760684762240,0.1,3821.4,3821.3,24.97664083]
[1760684762751,0.002,3821.5,3821.4,4.97844199]
[1760684763043,0.002,3821.5,3821.4,6.75104705]
[1760684763249,0.002,3821.9,3821.4,6.75104705]
[1760684763453,0.4332,3823.6,3821.4,6.75104705]
[1760684763454,0.63109477,3823.8,3822.2,2.61629428]
[1760684763617,0.2207,3823.8,3822.2,7.76589428]
[1760684763810,0.2207,3823.8,3822.2,14.667899]
[1760684764016,0.2207,3824.4,3823.0,2.3616]
[1760684764366,0.4332,3824.3,3822.3,21.67417971]
[1760684764663,0.2207,3823.1,3822.1,19.99813036]
[1760684764828,0.1304,3822.5,3821.9,0.1304]
[1760684765013,0.2207,3823.1,3820.9,0.1164]
[1760684765014,0.2207,3822.6,3820.9,0.1164]
[1760684765212,0.2207,3823.1,3821.8,19.93993036]
[1760684765531,0.2207,3823.1,3822.2,0.6336]
[1760684765731,0.2207,3823.1,3822.0,1.728]
[1760684765935,0.4332,3823.0,3822.0,1.728]
[1760684766115,0.4332,3822.9,3820.9,0.0582]
[1760684766445,0.41042565,3822.8,3820.9,0.0582]
[1760684766615,0.41042565,3822.8,3821.3,2.616907]
[1760684766811,0.4332,3822.7,3820.3,0.0582]
[1760684767148,0.2207,3821.4,3820.3,2.6175847]
[1760684767353,0.2207,3821.4,3820.0,0.0582]
[1760684767526,0.2207,3821.4,3820.0,2.67597669]
[1760684767707,0.2207,3821.4,3820.1,1.728]
[1760684767914,0.2207,3821.4,3819.6,0.0582]
[1760684767915,0.4332,3821.3,3819.5,0.0582]
[1760684768347,0.4332,3821.3,3819.0,0.0582]
[1760684768513,0.04563064,3820.9,3819.0,0.0582]
[1760684768911,0.04563064,3820.9,3818.7,0.001]
[1760684768912,0.6539,3820.8,3818.7,0.001]
[1760684769117,0.2207,3819.2,3818.7,0.001]
[1760684769347,0.6539,3820.8,3818.7,0.001]
[1760684769555,0.2207,3819.7,3818.7,0.001]
[1760684770216,1.264,3820.2,3818.7,0.001]
[1760684770543,0.4332,3819.6,3818.7,0.001]
[1760684770958,0.4332,3819.5,3818.7,0.001]
[1760684771330,0.2207,3819.9,3818.7,0.001]
[1760684771722,0.4332,3819.8,3819.5,0.001]
[1760684772118,0.4332,3819.7,3819.5,0.001]
[1760684772552,0.4332,3819.6,3819.5,0.001]
[1760684772935,2.789,3819.8,3819.5,0.001]
[1760684773152,2.789,3819.8,3819.5,0.26292799]
[1760684773540,0.0456398,3820.2,3819.5,0.001]
[1760684773756,3.0097,3820.8,3819.7,2.6179762]
[1760684774052,3.0097,3820.8,3820.0,2.61773359]
[1760684774362,3.0097,3820.8,3819.5,0.001]
[1760684774363,2.789,3820.8,3819.5,0.001]
[1760684774594,0.4332,3820.7,3819.5,0.001]
[1760684775583,0.2207,3819.6,3819.5,0.001]
[1760684775948,0.2207,3819.9,3819.5,0.001]
[1760684776149,0.4332,3819.6,3819.5,0.001]
[1760684778293,2.7948,3819.6,3819.1,0.001]
[1760684778599,0.6336,3819.4,3818.3,0.001]
[1760684778802,0.2207,3818.4,3816.5,0.0612]
[1760684778983,3.2242,3818.3,3816.5,0.0612]
[1760684779168,3.2242,3818.3,3816.6,2.64633443]
[1760684779369,3.2242,3818.3,3817.1,0.6336]
[1760684779593,3.2242,3818.3,3817.3,2.61964181]
[1760684779794,3.2242,3818.3,3816.8,0.6336]
[1760684779795,0.4332,3818.3,3817.4,0.26196418]
[1760684780096,0.2207,3818.4,3817.4,0.26196418]
[1760684780395,0.4332,3818.3,3816.4,0.0262027]
[1760684780558,0.4332,3818.3,3815.6,18.13587005]
[1760684780764,0.4332,3818.3,3815.5,0.0622]
[1760684780765,0.6336,3818.2,3815.5,0.0622]
[1760684780958,0.04566457,3817.9,3815.6,0.02620819]
[1760684781288,0.6539,3817.8,3815.6,4.85425]
[1760684781600,0.2207,3817.8,3817.0,2.61985154]
[1760684781893,0.2207,3817.8,3815.7,2.70912008]
[1760684781894,0.4691,3817.7,3816.2,2.62036464]
[1760684782082,0.4691,3817.7,3816.3,0.26203646]
[1760684782256,0.4691,3817.7,3816.5,2.62018446]
[1760684782462,0.4691,3817.7,3816.3,0.26203646]
[1760684782686,0.4691,3817.7,3816.6,2.62013163]
[1760684782958,0.4691,3817.7,3815.9,2.3616]
[1760684783181,0.4691,3817.7,3815.7,0.6958]
[1760684783182,0.4691,3817.7,3816.1,0.6336]
[1760684783486,0.4691,3817.6,3815.2,3.52789256]
[1760684783790,2.792,3817.5,3815.5,2.68308049]
[1760684783993,0.41105625,3817.3,3815.6,0.26830805]
[1760684784196,0.41105625,3817.3,3815.6,0.6336]
[1760684784784,0.41105625,3817.3,3816.0,1.728]
[1760684784989,0.41105625,3817.3,3815.7,1.728]
[1760684785197,0.41105625,3817.3,3815.5,0.0622]
[1760684785198,0.4691,3817.2,3815.5,0.0622]
[1760684785895,0.29342663,3817.1,3814.4,20.82265583]
[1760684786194,0.41109792,3816.8,3814.7,0.0622]
[1760684786362,0.88019792,3816.8,3814.7,0.0622]
[1760684786567,0.88019792,3816.8,3815.1,2.62109966]
[1760684786765,0.88019792,3816.8,3815.3,2.62102586]
[1760684786991,0.88019792,3816.8,3815.4,2.62095475]
[1760684787199,0.4691,3816.7,3814.7,0.0622]
[1760684787364,0.4691,3816.6,3814.5,2.62156798]
[1760684787558,0.29342663,3817.1,3814.4,2.62463841]
[1760684787559,0.04568924,3816.4,3814.4,2.62463841]
[1760684787904,0.2157,3815.3,3815.2,2.93209256]
[1760684788069,3.4711,3815.3,3815.2,2.93209256]
[1760684788264,0.2135,3815.9,3815.2,2.93209256]
[1760684788468,2.124,3815.8,3815.2,2.93209256]
[1760684788865,2.16969261,3815.8,3815.2,2.93209256]
[1760684789111,2.6057936,3815.7,3815.2,2.93209256]
[1760684789283,0.6336,3815.6,3815.2,2.46079256]
[1760684789495,0.49424862,3815.5,3815.2,2.46079256]
[1760684789803,2.793,3815.4,3815.2,2.46079256]
[1760684790177,0.6336,3815.3,3815.2,2.46079256]
[1760684790379,2.83869912,3815.4,3815.2,2.46079256]
[1760684790906,0.6336,3815.3,3815.2,2.46079256]
[1760684791107,5.1546,3815.3,3815.2,0.40973157]
[1760684791315,5.71575732,3815.3,3815.2,0.40973157]
[1760684791618,2.3616,3815.2,3815.1,0.001]
[1760684791985,0.6336,3815.2,3815.1,0.001]
[1760684792385,4.98269456,3815.2,3815.1,0.001]
[1760684792815,8.79564856,3815.2,3815.1,0.001]
[1760684793031,4.86175626,3815.2,3815.1,0.001]
[1760684793180,0.05,3814.9,3814.8,0.001]
[1760684793377,0.6836,3814.9,3814.8,0.001]
[1760684793578,0.9021,3814.9,3814.8,0.001]
[1760684793807,1.31351537,3814.9,3814.8,0.001]
[1760684794021,1.61766691,3814.9,3814.8,0.001]
[1760684794515,0.6336,3814.1,3812.4,2.64002879]
[1760684794700,1.778,3813.7,3812.4,2.64002879]